[Event "*** Titled Tuesday Blitz"]
[Site "Chess.com"]
[Date "2021.02.09"]
[Round "7"]
[White "stasiek18"]
[Black "politeplayer"]
[Result "0-1"]
[WhiteElo "2362"]
[BlackElo "2194"]
[TimeControl "180+1"]
[EndTime "11:18:11 PST"]
[Termination "politeplayer won by resignation"]

1. e4 {[%clk 0:03:00.9]} 1... c5 {[%clk 0:02:57.9]} 2. Nf3 {[%clk 0:03:00.4]}
2... e6 {[%clk 0:02:57.3]} 3. d4 {[%clk 0:03:00]} 3... cxd4 {[%clk 0:02:57.4]}
4. Nxd4 {[%clk 0:03:00.9]} 4... Nc6 {[%clk 0:02:57.7]} 5. Nc3 {[%clk 0:02:52.4]}
5... Qc7 {[%clk 0:02:58.1]} 6. g3 {[%clk 0:02:41.9]} 6... a6 {[%clk 0:02:57]} 7.
Bg2 {[%clk 0:02:39.5]} 7... Nf6 {[%clk 0:02:57.5]} 8. O-O {[%clk 0:02:39.5]}
8... Nxd4 {[%clk 0:02:52.5]} 9. Qxd4 {[%clk 0:02:40.4]} 9... Bc5 {[%clk
0:02:51.6]} 10. Bf4 {[%clk 0:02:40.9]} 10... d6 {[%clk 0:02:42.7]} 11. Qd2
{[%clk 0:02:40.1]} 11... h6 {[%clk 0:02:41.4]} 12. Rad1 {[%clk 0:02:10.1]} 12...
e5 {[%clk 0:02:40]} 13. Be3 {[%clk 0:02:10.1]} 13... Be6 {[%clk 0:02:39.6]} 14.
Na4 {[%clk 0:01:40.9]} 14... Bxe3 {[%clk 0:02:33.8]} 15. Qxe3 {[%clk 0:01:41.8]}
15... Qxc2 {[%clk 0:02:27.9]} 16. Nb6 {[%clk 0:01:37.2]} 16... Rd8 {[%clk
0:02:27.5]} 17. Rd2 {[%clk 0:01:18.6]} 17... Qc5 {[%clk 0:02:14.2]} 18. Qxc5
{[%clk 0:01:02.3]} 18... dxc5 {[%clk 0:02:13.7]} 19. Rfd1 {[%clk 0:01:03.2]}
19... Rxd2 {[%clk 0:01:59]} 20. Rxd2 {[%clk 0:01:04.1]} 20... Ke7 {[%clk
0:01:59.4]} 21. f4 {[%clk 0:01:04.5]} 21... Rd8 {[%clk 0:01:46]} 22. Rxd8 {[%clk
0:00:33.4]} 22... Kxd8 {[%clk 0:01:45.4]} 23. fxe5 {[%clk 0:00:15.9]} 23... Ng4
{[%clk 0:01:44.4]} 24. Na4 {[%clk 0:00:13.5]} 24... c4 {[%clk 0:01:34]} 25. Nc5
{[%clk 0:00:12.8]} 25... Kc7 {[%clk 0:01:28.6]} 26. Bh3 {[%clk 0:00:12.9]} 26...
h5 {[%clk 0:01:26.5]} 27. Bxg4 {[%clk 0:00:11.9]} 27... hxg4 {[%clk 0:01:20.5]}
28. Kf2 {[%clk 0:00:11.5]} 28... Kc6 {[%clk 0:01:17]} 29. Nxe6 {[%clk
0:00:10.7]} 29... fxe6 {[%clk 0:01:16.6]} 30. Ke3 {[%clk 0:00:11.6]} 30... Kc5
{[%clk 0:01:16.2]} 31. Kf4 {[%clk 0:00:12]} 31... b5 {[%clk 0:01:14.9]} 32. Kxg4
{[%clk 0:00:11.7]} 32... b4 {[%clk 0:01:15.3]} 33. Kf4 {[%clk 0:00:10.7]} 33...
Kd4 {[%clk 0:01:08.3]} 34. Kf3 {[%clk 0:00:10.5]} 34... Kd3 {[%clk 0:01:06]} 35.
h4 {[%clk 0:00:09.9]} 35... c3 {[%clk 0:01:06]} 36. bxc3 {[%clk 0:00:10.8]}
36... bxc3 {[%clk 0:01:06]} 37. Kf4 {[%clk 0:00:09.9]} 37... c2 {[%clk 0:01:06]}
38. Kg5 {[%clk 0:00:10.8]} 38... c1=Q+ {[%clk 0:01:05.5]} 39. Kg6 {[%clk
0:00:11.7]} 39... Qg1 {[%clk 0:01:03.2]} 40. Kxg7 {[%clk 0:00:12.6]} 40... Qxg3+
{[%clk 0:01:03.1]} 41. Kf6 {[%clk 0:00:13.3]} 41... Qxh4+ {[%clk 0:01:03.2]} 42.
Kxe6 {[%clk 0:00:14.2]} 42... Qxe4 {[%clk 0:01:02.5]} 43. Kd6 {[%clk 0:00:13.3]}
43... Qb4+ {[%clk 0:00:59.6]} 44. Kd5 {[%clk 0:00:12.9]} 44... Qc4+ {[%clk
0:00:58]} 45. Kd6 {[%clk 0:00:13.1]} 45... Qxa2 {[%clk 0:00:57.7]} 46. e6 {[%clk
0:00:12.7]} 46... a5 {[%clk 0:00:57.9]} 47. e7 {[%clk 0:00:12.7]} 47... Qa3+
{[%clk 0:00:57.5]} 48. Kd7 {[%clk 0:00:12.5]} 48... Qxe7+ {[%clk 0:00:56.9]} 49.
Kxe7 {[%clk 0:00:13.4]} 49... a4 {[%clk 0:00:57]} 0-1

[Event "*** Titled Tuesday Blitz"]
[Site "Chess.com"]
[Date "2021.02.09"]
[Round "7"]
[White "bennyficial"]
[Black "Trickster_Pony"]
[Result "1-0"]
[WhiteElo "2194"]
[BlackElo "1490"]
[TimeControl "180+1"]
[EndTime "11:18:11 PST"]
[Termination "bennyficial won by resignation"]

1. e4 {[%clk 0:03:00.9]} 1... c5 {[%clk 0:02:59.6]} 2. Nf3 {[%clk 0:03:01]} 2...
g6 {[%clk 0:02:55.6]} 3. c3 {[%clk 0:03:00.8]} 3... d5 {[%clk 0:02:51.9]} 4.
exd5 {[%clk 0:03:00.2]} 4... Qxd5 {[%clk 0:02:51.6]} 5. d4 {[%clk 0:03:00.8]}
5... Bg7 {[%clk 0:02:50.1]} 6. Na3 {[%clk 0:02:59.3]} 6... cxd4 {[%clk
0:02:34.4]} 7. Nb5 {[%clk 0:02:58]} 7... Na6 {[%clk 0:02:21.7]} 8. Nbxd4 {[%clk
0:02:55.9]} 8... Bg4 {[%clk 0:02:16.8]} 9. Be2 {[%clk 0:02:55.3]} 9... Nf6
{[%clk 0:02:15.3]} 10. O-O {[%clk 0:02:52.3]} 10... O-O {[%clk 0:02:12.6]} 11.
Be3 {[%clk 0:02:52.3]} 11... Nc5 {[%clk 0:02:05.7]} 12. h3 {[%clk 0:02:48.1]}
12... Bd7 {[%clk 0:02:00.2]} 13. c4 {[%clk 0:02:38.3]} 13... Qd6 {[%clk
0:01:50.5]} 14. Nb5 {[%clk 0:02:22.7]} 14... Qxd1 {[%clk 0:01:46.4]} 15. Rfxd1
{[%clk 0:02:20.8]} 15... Ne6 {[%clk 0:01:43.1]} 16. Nbd4 {[%clk 0:01:55.4]}
16... Nxd4 {[%clk 0:01:38.3]} 17. Bxd4 {[%clk 0:01:56.3]} 17... Be6 {[%clk
0:01:35.3]} 18. Ng5 {[%clk 0:01:50.6]} 18... Bf5 {[%clk 0:01:27.6]} 19. Rac1
{[%clk 0:01:29.5]} 19... Rfd8 {[%clk 0:01:23.2]} 20. Bc3 {[%clk 0:01:10.8]}
20... h6 {[%clk 0:01:18.3]} 21. Nf3 {[%clk 0:01:10.4]} 21... Ne4 {[%clk
0:01:14.9]} 22. Bxg7 {[%clk 0:01:10.5]} 22... Kxg7 {[%clk 0:01:12.6]} 23. Nd4
{[%clk 0:01:10.8]} 23... Bd7 {[%clk 0:00:59.4]} 24. Bf3 {[%clk 0:01:10.5]} 24...
Nd6 {[%clk 0:00:58.6]} 25. c5 {[%clk 0:01:05.7]} 25... Nf5 {[%clk 0:00:58]} 26.
Nxf5+ {[%clk 0:01:03.1]} 26... Bxf5 {[%clk 0:00:53.6]} 27. Bxb7 {[%clk
0:01:00.9]} 27... Rxd1+ {[%clk 0:00:50.9]} 28. Rxd1 {[%clk 0:01:01.8]} 28... Rb8
{[%clk 0:00:49.8]} 29. c6 {[%clk 0:01:00.9]} 29... Bc8 {[%clk 0:00:45.8]} 30.
Bxc8 {[%clk 0:00:55.1]} 30... Rxc8 {[%clk 0:00:46.7]} 31. Rc1 {[%clk 0:00:55.6]}
31... Kf6 {[%clk 0:00:45.9]} 32. b4 {[%clk 0:00:56.1]} 32... Ke6 {[%clk
0:00:46.3]} 33. b5 {[%clk 0:00:56.6]} 33... Kd6 {[%clk 0:00:46.8]} 34. f3 {[%clk
0:00:55.3]} 34... e5 {[%clk 0:00:33.6]} 35. Kf2 {[%clk 0:00:55.6]} 35... a6
{[%clk 0:00:31.4]} 36. a4 {[%clk 0:00:54.7]} 36... axb5 {[%clk 0:00:27.4]} 37.
axb5 {[%clk 0:00:55.6]} 37... Kc7 {[%clk 0:00:27.2]} 38. Ke3 {[%clk 0:00:52.9]}
38... Kb6 {[%clk 0:00:27.2]} 39. Ke4 {[%clk 0:00:49]} 39... f6 {[%clk
0:00:17.4]} 40. Kd5 {[%clk 0:00:45.7]} 40... Kxb5 {[%clk 0:00:12.3]} 41. Rb1+
{[%clk 0:00:46.2]} 41... Ka6 {[%clk 0:00:10.8]} 42. Kd6 {[%clk 0:00:46.6]} 42...
Ka5 {[%clk 0:00:08.5]} 43. Kd7 {[%clk 0:00:46.1]} 43... Ra8 {[%clk 0:00:07.7]}
44. Ra1+ {[%clk 0:00:45.1]} 1-0

[Event "*** Titled Tuesday Blitz"]
[Site "Chess.com"]
[Date "2021.02.09"]
[Round "7"]
[White "awesomevishesh"]
[Black "Vugar_Manafov"]
[Result "0-1"]
[WhiteElo "2497"]
[BlackElo "2656"]
[TimeControl "180+1"]
[EndTime "11:18:13 PST"]
[Termination "Vugar_Manafov won on time"]

1. d4 {[%clk 0:02:47.1]} 1... Nf6 {[%clk 0:03:00.9]} 2. c4 {[%clk 0:02:47]} 2...
e6 {[%clk 0:03:01]} 3. g3 {[%clk 0:02:47.1]} 3... Bb4+ {[%clk 0:03:01.3]} 4. Nd2
{[%clk 0:02:47.1]} 4... O-O {[%clk 0:03:01.2]} 5. Bg2 {[%clk 0:02:47.1]} 5... d5
{[%clk 0:03:01.5]} 6. Nf3 {[%clk 0:02:47.1]} 6... Nbd7 {[%clk 0:03:01.3]} 7. O-O
{[%clk 0:02:47]} 7... c6 {[%clk 0:03:01.3]} 8. Qc2 {[%clk 0:02:46.3]} 8... a5
{[%clk 0:02:56.5]} 9. e4 {[%clk 0:02:46.2]} 9... Bxd2 {[%clk 0:02:41]} 10. Nxd2
{[%clk 0:02:45.8]} 10... dxe4 {[%clk 0:02:37.1]} 11. Nxe4 {[%clk 0:02:41.4]}
11... e5 {[%clk 0:02:35.7]} 12. dxe5 {[%clk 0:02:31.5]} 12... Nxe5 {[%clk
0:02:29.6]} 13. Bg5 {[%clk 0:02:30.5]} 13... Neg4 {[%clk 0:02:29.7]} 14. Rad1
{[%clk 0:02:19.2]} 14... Qe7 {[%clk 0:02:20.3]} 15. Rfe1 {[%clk 0:01:54.8]}
15... Bf5 {[%clk 0:02:08.4]} 16. h3 {[%clk 0:01:47.3]} 16... Bxe4 {[%clk
0:02:00.3]} 17. Bxe4 {[%clk 0:01:11.2]} 17... Qc5 {[%clk 0:01:53.4]} 18. Bf4
{[%clk 0:00:22.7]} 18... Nxe4 {[%clk 0:01:48]} 19. hxg4 {[%clk 0:00:19.1]} 19...
Ng5 {[%clk 0:01:37.9]} 20. Kg2 {[%clk 0:00:07.8]} 20... Rfe8 {[%clk 0:01:23.7]}
21. Rxe8+ {[%clk 0:00:07.4]} 21... Rxe8 {[%clk 0:01:24.6]} 22. Qf5 {[%clk
0:00:06.8]} 22... Ne6 {[%clk 0:01:19.5]} 23. Qxc5 {[%clk 0:00:04.5]} 23... Nxc5
{[%clk 0:01:20.4]} 24. Be3 {[%clk 0:00:04.9]} 24... Na4 {[%clk 0:01:17]} 25. b3
{[%clk 0:00:04.7]} 25... Nc3 {[%clk 0:01:16.9]} 26. Rd2 {[%clk 0:00:04.9]} 26...
f6 {[%clk 0:01:13.6]} 27. Bb6 {[%clk 0:00:04.8]} 27... a4 {[%clk 0:01:13.9]} 28.
b4 {[%clk 0:00:03.3]} 28... Re4 {[%clk 0:01:10.3]} 29. Bd4 {[%clk 0:00:02.6]}
29... Nxa2 {[%clk 0:01:10.6]} 30. Rxa2 {[%clk 0:00:02.1]} 30... Rxd4 {[%clk
0:01:11]} 31. Rxa4 {[%clk 0:00:02.4]} 31... Rxc4 {[%clk 0:01:11.6]} 32. Kf3
{[%clk 0:00:01.6]} 32... Kf7 {[%clk 0:01:07.5]} 33. Ke3 {[%clk 0:00:01.2]} 33...
Ke6 {[%clk 0:01:08]} 34. f4 {[%clk 0:00:01.4]} 34... b5 {[%clk 0:01:06.5]} 35.
Ra6 {[%clk 0:00:01.4]} 35... Kd5 {[%clk 0:01:06.9]} 36. Ra8 {[%clk 0:00:01.3]}
36... Rxb4 {[%clk 0:01:07.5]} 37. Rd8+ {[%clk 0:00:01.8]} 37... Kc4 {[%clk
0:01:07.8]} 38. Rc8 {[%clk 0:00:02.2]} 38... Rb3+ {[%clk 0:01:08.7]} 39. Ke4
{[%clk 0:00:02.2]} 39... c5 {[%clk 0:01:09.6]} 40. Kf5 {[%clk 0:00:02.3]} 40...
Rxg3 {[%clk 0:01:09.7]} 41. Rc7 {[%clk 0:00:01.7]} 41... g6+ {[%clk 0:01:10]}
42. Kxf6 {[%clk 0:00:02]} 42... Rxg4 {[%clk 0:01:10.9]} 43. Ke5 {[%clk
0:00:02.1]} 43... b4 {[%clk 0:01:10.7]} 44. Rxh7 {[%clk 0:00:02.3]} 44... b3
{[%clk 0:01:10.9]} 45. Rb7 {[%clk 0:00:02.5]} 45... Kc3 {[%clk 0:01:10.4]} 46.
f5 {[%clk 0:00:02.6]} 46... gxf5 {[%clk 0:01:10.7]} 47. Kxf5 {[%clk 0:00:03.5]}
47... Rb4 {[%clk 0:01:11.3]} 0-1

[Event "*** Titled Tuesday Blitz"]
[Site "Chess.com"]
[Date "2021.02.09"]
[Round "7"]
[White "ega2006"]
[Black "GianmarcoVaR"]
[Result "0-1"]
[WhiteElo "2404"]
[BlackElo "2576"]
[TimeControl "180+1"]
[EndTime "11:18:13 PST"]
[Termination "GianmarcoVaR won by checkmate"]

1. e4 {[%clk 0:03:00.9]} 1... c5 {[%clk 0:02:56.8]} 2. Nf3 {[%clk 0:03:01.3]}
2... d6 {[%clk 0:02:56.3]} 3. Bb5+ {[%clk 0:03:01.3]} 3... Nd7 {[%clk
0:02:54.6]} 4. a4 {[%clk 0:02:53.3]} 4... Nf6 {[%clk 0:02:36.3]} 5. Nc3 {[%clk
0:02:50.8]} 5... a6 {[%clk 0:02:24.5]} 6. Be2 {[%clk 0:02:50.5]} 6... g6 {[%clk
0:02:22.2]} 7. O-O {[%clk 0:02:48.5]} 7... Bg7 {[%clk 0:02:16.4]} 8. d3 {[%clk
0:02:44.8]} 8... O-O {[%clk 0:02:16]} 9. Nh4 {[%clk 0:02:43.8]} 9... Rb8 {[%clk
0:02:04.8]} 10. a5 {[%clk 0:02:43.9]} 10... Ne5 {[%clk 0:01:57.4]} 11. f4 {[%clk
0:01:33.7]} 11... Nc6 {[%clk 0:01:57.4]} 12. Be3 {[%clk 0:00:55.3]} 12... Nxa5
{[%clk 0:01:52.7]} 13. g4 {[%clk 0:00:31.7]} 13... Nc6 {[%clk 0:01:49.1]} 14. g5
{[%clk 0:00:32]} 14... Ne8 {[%clk 0:01:48.8]} 15. Bg4 {[%clk 0:00:32.2]} 15...
Nd4 {[%clk 0:01:47.4]} 16. Rf2 {[%clk 0:00:31]} 16... Bxg4 {[%clk 0:01:37.1]}
17. Qxg4 {[%clk 0:00:30.7]} 17... f5 {[%clk 0:01:20.7]} 18. Qg3 {[%clk
0:00:26.9]} 18... e6 {[%clk 0:01:16.8]} 19. Nf3 {[%clk 0:00:23]} 19... Rc8
{[%clk 0:01:08.7]} 20. h4 {[%clk 0:00:21.2]} 20... d5 {[%clk 0:00:59]} 21. e5
{[%clk 0:00:20.5]} 21... Nxf3+ {[%clk 0:00:58.6]} 22. Rxf3 {[%clk 0:00:19.1]}
22... d4 {[%clk 0:00:59.5]} 23. Bf2 {[%clk 0:00:18.7]} 23... dxc3 {[%clk
0:00:59.1]} 24. bxc3 {[%clk 0:00:19.6]} 24... c4 {[%clk 0:00:59.9]} 25. d4
{[%clk 0:00:19.9]} 25... Qd5 {[%clk 0:00:57.5]} 26. h5 {[%clk 0:00:19.1]} 26...
Nc7 {[%clk 0:00:57.6]} 27. Kg2 {[%clk 0:00:17.9]} 27... Rfd8 {[%clk 0:00:42.1]}
28. Rh1 {[%clk 0:00:18.1]} 28... Kf7 {[%clk 0:00:42.2]} 29. Qh2 {[%clk
0:00:07.2]} 29... Rh8 {[%clk 0:00:41.5]} 30. Qg1 {[%clk 0:00:06.3]} 30... Ra8
{[%clk 0:00:41.1]} 31. Be3 {[%clk 0:00:04.6]} 31... b5 {[%clk 0:00:39]} 32. Kf2
{[%clk 0:00:04.7]} 32... a5 {[%clk 0:00:38.5]} 33. Rfh3 {[%clk 0:00:04.8]} 33...
Qe4 {[%clk 0:00:38.8]} 34. Qd1 {[%clk 0:00:03.4]} 34... Nd5 {[%clk 0:00:37.9]}
35. Bd2 {[%clk 0:00:03.1]} 35... Nxf4 {[%clk 0:00:37.8]} 36. Rh4 {[%clk
0:00:01.5]} 36... Qg2+ {[%clk 0:00:37.4]} 37. Ke3 {[%clk 0:00:01.1]} 37... Nd5#
{[%clk 0:00:37.1]} 0-1

[Event "*** Titled Tuesday Blitz"]
[Site "Chess.com"]
[Date "2021.02.09"]
[Round "7"]
[White "GigaQuparadze"]
[Black "vinniethepooh"]
[Result "1/2-1/2"]
[WhiteElo "2910"]
[BlackElo "2760"]
[TimeControl "180+1"]
[EndTime "11:18:14 PST"]
[Termination "Game drawn by agreement"]

1. e4 {[%clk 0:03:00.9]} 1... c5 {[%clk 0:02:58.6]} 2. Nf3 {[%clk 0:03:00.6]}
2... d6 {[%clk 0:02:59.2]} 3. d4 {[%clk 0:03:00.4]} 3... cxd4 {[%clk 0:03:00.1]}
4. Nxd4 {[%clk 0:03:01.3]} 4... Nf6 {[%clk 0:03:00.8]} 5. Nc3 {[%clk 0:03:01.5]}
5... a6 {[%clk 0:03:01.4]} 6. h3 {[%clk 0:03:01]} 6... e6 {[%clk 0:03:01]} 7. g4
{[%clk 0:03:00.3]} 7... d5 {[%clk 0:03:01.7]} 8. Nde2 {[%clk 0:02:58.8]} 8...
Nc6 {[%clk 0:03:01.8]} 9. exd5 {[%clk 0:02:57.4]} 9... Nxd5 {[%clk 0:03:02.7]}
10. Nxd5 {[%clk 0:02:56.7]} 10... exd5 {[%clk 0:03:02.9]} 11. Bg2 {[%clk
0:02:57.1]} 11... h5 {[%clk 0:03:00.7]} 12. gxh5 {[%clk 0:02:57]} 12... Bd6
{[%clk 0:02:19.5]} 13. h6 {[%clk 0:02:52.3]} 13... gxh6 {[%clk 0:02:12.6]} 14.
O-O {[%clk 0:02:48.1]} 14... Rg8 {[%clk 0:02:01.3]} 15. Ng3 {[%clk 0:02:48]}
15... Be6 {[%clk 0:01:44.4]} 16. Qh5 {[%clk 0:02:42.6]} 16... Qc7 {[%clk
0:01:26.1]} 17. Qh4 {[%clk 0:02:28.4]} 17... Ne5 {[%clk 0:01:14]} 18. Bxh6
{[%clk 0:02:20.4]} 18... Ng6 {[%clk 0:00:55.8]} 19. Qa4+ {[%clk 0:02:07]} 19...
b5 {[%clk 0:00:51.8]} 20. Qb3 {[%clk 0:02:06.8]} 20... Nh4 {[%clk 0:00:48.7]}
21. Kh1 {[%clk 0:01:43.1]} 21... Bxg3 {[%clk 0:00:21.1]} 22. fxg3 {[%clk
0:01:44]} 22... Qxg3 {[%clk 0:00:22]} 23. Qxg3 {[%clk 0:01:29]} 23... Rxg3
{[%clk 0:00:22.9]} 24. Rf2 {[%clk 0:01:24.4]} 24... Nxg2 {[%clk 0:00:20.8]} 25.
Rxg2 {[%clk 0:01:24.7]} 25... Rxh3+ {[%clk 0:00:21.4]} 26. Rh2 {[%clk
0:01:21.3]} 26... Rxh2+ {[%clk 0:00:18.6]} 27. Kxh2 {[%clk 0:01:22.2]} 27... Kd7
{[%clk 0:00:19.3]} 28. Bg7 {[%clk 0:01:18.1]} 28... Rg8 {[%clk 0:00:19.3]} 29.
Rg1 {[%clk 0:01:17.8]} 29... Rc8 {[%clk 0:00:15.6]} 30. c3 {[%clk 0:01:16.8]}
30... b4 {[%clk 0:00:16.1]} 31. cxb4 {[%clk 0:01:15.9]} 31... Rc4 {[%clk
0:00:14.6]} 32. a3 {[%clk 0:01:05.6]} 32... Rh4+ {[%clk 0:00:14.8]} 33. Kg3
{[%clk 0:01:05.9]} 33... Rg4+ {[%clk 0:00:15.3]} 34. Kf2 {[%clk 0:01:06]} 34...
Rxg1 {[%clk 0:00:14.1]} 35. Kxg1 {[%clk 0:01:06.9]} 35... Kc6 {[%clk 0:00:14]}
36. Kf2 {[%clk 0:01:06.3]} 36... Kb5 {[%clk 0:00:14.4]} 37. b3 {[%clk
0:01:04.8]} 37... d4 {[%clk 0:00:12.2]} 38. Bxd4 {[%clk 0:01:03.4]} 38... Bxb3
{[%clk 0:00:12.6]} 39. Ke3 {[%clk 0:01:03.9]} 39... a5 {[%clk 0:00:12.9]} 40.
bxa5 {[%clk 0:01:03.4]} 40... Kxa5 {[%clk 0:00:13.8]} 41. Kf4 {[%clk 0:01:03.8]}
41... Ka4 {[%clk 0:00:14.2]} 42. Bc5 {[%clk 0:01:04.2]} 42... Bc4 {[%clk
0:00:13.9]} 43. Ke5 {[%clk 0:01:04]} 43... Bb3 {[%clk 0:00:14.8]} 44. Kd4 {[%clk
0:01:04.4]} 44... Be6 {[%clk 0:00:15.7]} 45. Bd6 {[%clk 0:01:04.2]} 45... Bb3
{[%clk 0:00:16.6]} 46. Be7 {[%clk 0:01:03.5]} 46... Be6 {[%clk 0:00:17.5]} 47.
Bd6 {[%clk 0:01:03.6]} 47... Bb3 {[%clk 0:00:18.4]} 48. Be7 {[%clk 0:01:01.1]}
48... Be6 {[%clk 0:00:19.3]} 49. Bb4 {[%clk 0:01:00.2]} 49... Bb3 {[%clk
0:00:20.2]} 50. Ke5 {[%clk 0:00:58.5]} 50... Be6 {[%clk 0:00:21.1]} 51. Kf6
{[%clk 0:00:58.4]} 1/2-1/2

[Event "*** Titled Tuesday Blitz"]
[Site "Chess.com"]
[Date "2021.02.09"]
[Round "7"]
[White "Grineva_Marianna"]
[Black "jens1102"]
[Result "0-1"]
[WhiteElo "2221"]
[BlackElo "2459"]
[TimeControl "180+1"]
[EndTime "11:18:14 PST"]
[Termination "jens1102 won on time"]

1. e4 {[%clk 0:03:00.9]} 1... e6 {[%clk 0:02:59.8]} 2. d4 {[%clk 0:03:00.1]}
2... d5 {[%clk 0:03:00.7]} 3. Nd2 {[%clk 0:03:00.5]} 3... c5 {[%clk 0:03:00.6]}
4. Ngf3 {[%clk 0:02:59.3]} 4... cxd4 {[%clk 0:02:59.9]} 5. exd5 {[%clk
0:02:58.8]} 5... Qxd5 {[%clk 0:03:00.8]} 6. Bc4 {[%clk 0:02:59.2]} 6... Qd7
{[%clk 0:03:01.5]} 7. O-O {[%clk 0:02:59]} 7... Nc6 {[%clk 0:03:02.1]} 8. Nb3
{[%clk 0:02:59.5]} 8... Nf6 {[%clk 0:03:02.5]} 9. Nbxd4 {[%clk 0:02:59.4]} 9...
Nxd4 {[%clk 0:03:03.4]} 10. Nxd4 {[%clk 0:03:00]} 10... a6 {[%clk 0:03:04.3]}
11. Bb3 {[%clk 0:02:47.1]} 11... Bc5 {[%clk 0:03:01.6]} 12. Be3 {[%clk
0:02:30.3]} 12... Qc7 {[%clk 0:02:32.9]} 13. Qf3 {[%clk 0:02:12.5]} 13... O-O
{[%clk 0:02:31.3]} 14. Rad1 {[%clk 0:02:04.7]} 14... e5 {[%clk 0:02:23.6]} 15.
Nf5 {[%clk 0:01:53.5]} 15... e4 {[%clk 0:02:21.5]} 16. Qh3 {[%clk 0:01:16.4]}
16... Qe5 {[%clk 0:02:13.3]} 17. g4 {[%clk 0:00:56.4]} 17... Nxg4 {[%clk
0:02:06]} 18. Qxg4 {[%clk 0:00:52.5]} 18... Bxf5 {[%clk 0:02:04]} 19. Qg2 {[%clk
0:00:49.4]} 19... Rad8 {[%clk 0:01:58]} 20. Kh1 {[%clk 0:00:45.2]} 20... h5
{[%clk 0:01:44.7]} 21. Bxc5 {[%clk 0:00:25.9]} 21... Qxc5 {[%clk 0:01:32]} 22.
Rxd8 {[%clk 0:00:18.4]} 22... Rxd8 {[%clk 0:01:32.9]} 23. Rg1 {[%clk 0:00:18.7]}
23... Bg4 {[%clk 0:01:27]} 24. Qxe4 {[%clk 0:00:17.6]} 24... Qxf2 {[%clk
0:01:18]} 25. Bxf7+ {[%clk 0:00:13.8]} 25... Kxf7 {[%clk 0:01:12.7]} 26. Qxb7+
{[%clk 0:00:11.2]} 26... Rd7 {[%clk 0:01:09.8]} 27. Qb3+ {[%clk 0:00:11.1]}
27... Kf8 {[%clk 0:01:01.7]} 28. Qb8+ {[%clk 0:00:08]} 28... Kf7 {[%clk
0:01:01.7]} 29. Qb3+ {[%clk 0:00:07.6]} 29... Kf6 {[%clk 0:00:55.2]} 30. Qc3+
{[%clk 0:00:07.2]} 30... Qd4 {[%clk 0:00:53.2]} 31. Qc6+ {[%clk 0:00:06.5]}
31... Rd6 {[%clk 0:00:51.7]} 32. Rf1+ {[%clk 0:00:03.9]} 32... Kg6 {[%clk
0:00:51.2]} 33. Qe8+ {[%clk 0:00:03.6]} 33... Kh7 {[%clk 0:00:50.9]} 34. Qf8
{[%clk 0:00:03.2]} 34... Qd5+ {[%clk 0:00:46.8]} 35. Kg1 {[%clk 0:00:02.8]}
35... Qc5+ {[%clk 0:00:46.4]} 36. Kh1 {[%clk 0:00:02.4]} 36... Qc6+ {[%clk
0:00:46.8]} 37. Kg1 {[%clk 0:00:02.5]} 37... Qb6+ {[%clk 0:00:46.8]} 38. Kh1
{[%clk 0:00:02.7]} 38... Qb7+ {[%clk 0:00:46.9]} 39. Kg1 {[%clk 0:00:02.9]}
39... Rg6 {[%clk 0:00:43.6]} 40. Qf4 {[%clk 0:00:01.1]} 40... Bh3+ {[%clk
0:00:41.3]} 0-1

[Event "*** Titled Tuesday Blitz"]
[Site "Chess.com"]
[Date "2021.02.09"]
[Round "7"]
[White "kidagent"]
[Black "ChessFighter1975"]
[Result "0-1"]
[WhiteElo "2270"]
[BlackElo "2421"]
[TimeControl "180+1"]
[EndTime "11:18:14 PST"]
[Termination "ChessFighter1975 won by checkmate"]

1. e4 {[%clk 0:03:00.9]} 1... d6 {[%clk 0:02:49.9]} 2. d4 {[%clk 0:03:00.5]}
2... Nf6 {[%clk 0:02:50.4]} 3. Bd3 {[%clk 0:02:58.4]} 3... Nbd7 {[%clk
0:02:50.8]} 4. c3 {[%clk 0:02:57.7]} 4... e5 {[%clk 0:02:51]} 5. Nf3 {[%clk
0:02:57]} 5... c6 {[%clk 0:02:50.8]} 6. O-O {[%clk 0:02:56.8]} 6... Be7 {[%clk
0:02:51.2]} 7. Re1 {[%clk 0:02:57.2]} 7... b5 {[%clk 0:02:50.9]} 8. Nbd2 {[%clk
0:02:56.5]} 8... Bb7 {[%clk 0:02:50.6]} 9. Nf1 {[%clk 0:02:56.4]} 9... O-O
{[%clk 0:02:50.6]} 10. Ng3 {[%clk 0:02:55.1]} 10... Re8 {[%clk 0:02:50.9]} 11.
Bg5 {[%clk 0:02:52.9]} 11... Bf8 {[%clk 0:02:48.7]} 12. a4 {[%clk 0:02:41.6]}
12... a6 {[%clk 0:02:48]} 13. Qd2 {[%clk 0:02:34.9]} 13... Qc7 {[%clk 0:02:43]}
14. Nf5 {[%clk 0:02:32.1]} 14... d5 {[%clk 0:01:38.8]} 15. dxe5 {[%clk
0:02:09.8]} 15... Nxe5 {[%clk 0:01:39.7]} 16. Nxe5 {[%clk 0:02:09.2]} 16... Qxe5
{[%clk 0:01:31]} 17. f4 {[%clk 0:02:06.6]} 17... Qe6 {[%clk 0:01:13.4]} 18. e5
{[%clk 0:02:01.2]} 18... Nd7 {[%clk 0:00:52.7]} 19. Kh1 {[%clk 0:01:55]} 19...
Nc5 {[%clk 0:00:50.6]} 20. Bc2 {[%clk 0:01:54.1]} 20... bxa4 {[%clk 0:00:47.8]}
21. Nd4 {[%clk 0:01:50.2]} 21... Qg4 {[%clk 0:00:46.7]} 22. Re3 {[%clk 0:01:46]}
22... Ne4 {[%clk 0:00:35.5]} 23. Rxe4 {[%clk 0:01:44]} 23... dxe4 {[%clk
0:00:36.4]} 24. Bxe4 {[%clk 0:01:44.1]} 24... h6 {[%clk 0:00:27.5]} 25. Bf5
{[%clk 0:01:35.6]} 25... Qh5 {[%clk 0:00:23]} 26. Bd7 {[%clk 0:00:42.7]} 26...
hxg5 {[%clk 0:00:19.6]} 27. Bxe8 {[%clk 0:00:42.6]} 27... Rxe8 {[%clk
0:00:20.5]} 28. Rf1 {[%clk 0:00:36.9]} 28... c5 {[%clk 0:00:20.4]} 29. Nf5
{[%clk 0:00:36.9]} 29... Qg4 {[%clk 0:00:16.3]} 30. Ne3 {[%clk 0:00:34.2]} 30...
Qh5 {[%clk 0:00:13.3]} 31. Kg1 {[%clk 0:00:27.4]} 31... gxf4 {[%clk 0:00:12.4]}
32. Rxf4 {[%clk 0:00:26.9]} 32... Qxe5 {[%clk 0:00:12.7]} 33. Nc4 {[%clk
0:00:23.8]} 33... Qg5 {[%clk 0:00:09.7]} 34. Qf2 {[%clk 0:00:22.5]} 34... Re1+
{[%clk 0:00:08]} 35. Qxe1 {[%clk 0:00:22.4]} 35... Qxg2# {[%clk 0:00:08]} 0-1